Cogmind - Beta 14 @@@ ROGUE MODE // 2024.11.07 @ 23:27:33 Player: Ripper Result: Self-destructed Performance ------------- Evolutions (1) 500 Regions Visited (2) 400 Robots Destroyed (33) 165 Value Destroyed (756) 756 Prototype IDs (2) 40 Alien Tech Used (0) 0 Bonus (0) 0 TOTAL SCORE: 1861 Bonus ------- None Cogmind --------- Core Integrity 49/400 Matter 268/300 Energy 280/280 System Corruption 0% Temperature Cool (0) Movement Core (150) Ox2 Location -9/Materials Parts ------- > --- POWER (2) -------- Heavy Ion Engine > --- PROPULSION (3) --- (None) > --- UTILITY (2) ------ (None) > --- WEAPON (2) ------- (None) > --- INVENTORY (5) ---- (None) Peak State ------------ > --- POWER ------------ Light Ion Engine Light Nuclear Core > --- PROPULSION ------- Aluminum Leg Aluminum Leg Aluminum Leg > --- UTILITY ---------- Heat Sink Sensor Array > --- WEAPON ----------- Improved Assault Rifle EMP Blaster > --- INVENTORY -------- Heavy Assault Rifle [Rating: 14] Favorites ----------- Power Light Nuclear Core Engine Heavy Ion Engine Power Core Light Nuclear Core Propulsion Aluminum Leg Leg Aluminum Leg Utility Sensor Array Device Sensor Array Weapon EMP Blaster Energy Gun Medium Laser Ballistic Gun Light Assault Rifle Launcher EMP Blaster Build | -11 -10 -9 ------- Run | Yrd Mat Mat Slots Evolved 2 | . . 2 Power 1 | . . 1 Propulsion 1 | . . 1 Utility . | . . . Weapon . | . . . Parts Attached 26 | 5 11 10 Power 6 | 1 2 3 Engine 5 | 1 1 3 Core 1 | . 1 . Reactor . | . . . Propulsion 7 | 2 3 2 Treads . | . . . Leg 7 | 2 3 2 Wheel . | . . . Hover . | . . . Flight . | . . . Utility 2 | . 2 . Device 2 | . 2 . Storage . | . . . Processor . | . . . Hackware . | . . . Protection . | . . . Artifact . | . . . Weapon 11 | 2 4 5 Energy Gun 2 | 1 . 1 Energy Cannon . | . . . Ballistic Gun 6 | 1 1 4 Ballistic Cannon . | . . . Launcher 3 | . 3 . Special Weapon . | . . . Impact Weapon . | . . . Slashing Weapon . | . . . Piercing Weapon . | . . . Special Melee Weapon . | . . . Unidentified Prototypes 2 | . . 2 Parts Lost 16 | . 4 12 Power 4 | . 1 3 Propulsion 4 | . 1 3 Utility 2 | . . 2 Weapon 6 | . 2 4 Highest Loss Streak 9 | . 4 9 To Critical Strikes . | . . . Average Slot Usage (%) 64 | . 66 61 Engine 7 | . 6 8 Core 2 | . . 6 Leg 20 | . 23 14 Device 10 | . 7 13 Energy Gun 5 | . 6 2 Ballistic Gun 9 | . 9 9 Launcher 8 | . 9 6 Peak Build Rating 14 | 5 10 14 Average Rating 7 | 3 5 9 On Entrance 5 | . 5 10 Naked Turns . | . . . Heaviest Build 22 | 8 13 22 Greatest Support 30 | 20 20 30 Greatest Overweight (x) 7 | 1 1 7 Average Overweight (x) . | . . . Largest Inventory Capacity 5 | 5 5 5 Average Capacity 5 | 5 5 5 Most Carried 2 | 1 2 1 Average Carried . | . . . Final Capacity 5 | 5 5 5 Final Carried . | . . . Class Distribution -------------------- 75% | Mutant 24% | Scavenger-Mutant Dominant Class ---------------- Mutant | -10/Materials Scavenger-Mutant | -9/Materials Resources | -11 -10 -9 ----------- Run | Yrd Mat Mat Matter Collected 524 | 194 219 111 Remotely . | . . . Salvage Created 1050 | . 774 276 Parts 64 | . 42 22 Haulers Intercepted 1 | . 1 . Recyclers Shooed 2 | . 1 1 Parts Field Recycled . | . . . Retrieved Matter . | . . . Parts Self-Destructed . | . . . Prevented . | . . . Kills | -11 -10 -9 ------- Run | Yrd Mat Mat Combat Hostiles Destroyed 25 | . 14 11 Guns 13 | . 7 6 AOE 12 | . 7 5 Classes Destroyed 8 | . 7 1 Worker 2 | . 2 . Builder 3 | . 3 . Hauler 1 | . 1 . Recycler 1 | . 1 . Watcher 1 | . 1 . Swarmer 9 | . 3 6 Grunt 14 | . 11 3 Sentry 2 | . . 2 Best Kill Streak 5 | . 5 5 Combat Bots Only 5 | . 3 5 Max Kills in Single Turn 3 | . 3 3 Gunslinging . | . . . Exploded 3 | . 1 3 Melee . | . . . Uniques/NPCs Destroyed . | . . . Combat | -11 -10 -9 -------- Run | Yrd Mat Mat Hostile Shots Fired 264 | . 92 172 Missed 81 | . 23 58 Damage Taken 2063 | . 768 1295 Core 575 | . 224 351 Absorbed by Shields . | . . . Regen/Repaired (Parts) 58 | . 58 . Core Remaining (%) 55 | 100 10 . Volleys Fired 110 | . 72 38 Largest 2 | . 2 2 Hottest 83 | . 83 79 Shots Fired 130 | . 81 49 Gun 117 | . 72 45 Cannon . | . . . Launcher 13 | . 9 4 Special . | . . . Kinetic 80 | . 36 44 Thermal 37 | . 36 1 Explosive . | . . . Electromagnetic 13 | . 9 4 Robot Hit Streak 10 | . 8 10 Robot Miss Streak 6 | . 3 6 Penetration Max . | . . . Secondary Targets 2 | . . 2 Max Gunslinging Chain 1 | . . 1 Shots Hit Robots 74 | . 45 29 Core Hits 51 | . 37 14 Critical Kills 1 | . 1 . Critical Parts Destroyed . | . . . Critical Strikes 1 | . 1 . Destroy 1 | . 1 . Melee Attacks . | . . . Impact . | . . . Slashing . | . . . Piercing . | . . . Sneak Attacks . | . . . Combat Hostiles . | . . . Follow-up Attacks . | . . . Damage Inflicted 1745 | . 947 798 Guns 844 | . 411 433 Cannons . | . . . Explosions 876 | . 522 354 Melee . | . . . Ramming 25 | . 14 11 Kinetic 566 | . 147 419 Thermal 640 | . 342 298 Explosive . | . . . Electromagnetic 514 | . 444 70 Impact . | . . . Slashing . | . . . Piercing . | . . . Highest Corruption . | . . . Average Corruption . | . . . Corruption Purged . | . . . Corruption Blocked . | . . . Overload Shots . | . . . Overflow Damage 48 | . 41 7 Projectiles . | . . . Explosions 48 | . 41 7 Melee . | . . . Knockbacks . | . . . Impact . | . . . Kinetic . | . . . Secondary . | . . . Self-Inflicted Damage 55 | . 53 2 Shots 2 | . 2 . Rammed 1 | . . 1 Targets Rammed 10 | . 6 4 Kicked 9 | . 6 3 Crushed . | . . . Highest Temperature 192 | . 192 4 Average Temperature 76 | . 78 3 Received Heat Transfer 891 | . 315 576 Siege Activations . | . . . Robots Corrupted . | . . . Combat Hostiles . | . . . Parts Fried . | . . . Impact Corruptions . | . . . Robots Melted . | . . . Combat Hostiles . | . . . Parts Melted 1 | . 1 . Heat Transferred 1314 | . 977 337 Parts Sabotaged . | . . . Parts Stolen . | . . . Parts Stripped . | . . . Power Chain Reactions 7 | . 5 2 Alert | -11 -10 -9 ------- Run | Yrd Mat Mat Peak Influence 391 | . 335 391 Initial 94 | . . 94 Average 191 | . 154 263 Maximum Alert Level 1 | . 1 1 Low Security (%) 61 | 100 76 36 Level 1 38 | . 23 63 Level 2 . | . . . Level 3 . | . . . Level 4 . | . . . Level 5 . | . . . High Security . | . . . Max Security . | . . . Squads Dispatched 5 | . 3 2 Investigation 2 | . 2 . Extermination . | . . . Reinforcement 3 | . 1 2 Assault . | . . . Garrison . | . . . Intercept . | . . . Searches Triggered . | . . . Construction Impeded . | . . . Haulers Reinforced . | . . . Active Scanning Responses . | . . . Cargo Convoy Interrupts . | . . . Stealth | -11 -10 -9 --------- Run | Yrd Mat Mat Distress Signals 3 | . 2 1 Communications Jammed . | . . . Distress Signals . | . . . Times Spotted 45 | . 22 23 Peak Tracking Total 8 | . 4 8 Tactical Retreats 2 | . 2 . Traps | -11 -10 -9 ------- Run | Yrd Mat Mat Traps Triggered 3 | . 3 . Indirectly 1 | . 1 . Trap Hack Attempts . | . . . Triggered . | . . . Disarmed . | . . . Reprogrammed . | . . . Reused . | . . . Traps Extracted . | . . . Installed . | . . . Triggered . | . . . Machines | -11 -10 -9 ---------- Run | Yrd Mat Mat Machines Disabled 2 | . . 2 Max in Single Turn 1 | . . 1 Machines Repaired . | . . . Machines Dismantled . | . . . Machines Sabotaged . | . . . Overloaded Fab Kills . | . . . Hacking | -11 -10 -9 --------- Run | Yrd Mat Mat Machines Accessed 3 | . 3 . Terminals 1 | . 1 . Fabricators . | . . . Repair Stations 1 | . 1 . Recycling Units 1 | . 1 . Scanalyzers . | . . . Garrison Access . | . . . Total Hacks 6 | . 6 . Successful 5 | . 5 . Failed 1 | . 1 . Catastrophic . | . . . Database Lockouts . | . . . Manual . | . . . Terminals 2 | . 2 . Fabricators . | . . . Repair Stations 3 | . 3 . Recycling Units 1 | . 1 . Scanalyzers . | . . . Garrison Access . | . . . Terminal Hacks 1 | . 1 . Record 1 | . 1 . Fabricator Hacks . | . . . Repair Station Hacks 3 | . 3 . Scan Component 2 | . 2 . Repair 1 | . 1 . Recycling Unit Hacks 1 | . 1 . Process 1 | . 1 . Scanalyzer . | . . . Garrison Access Hacks . | . . . Unauthorized Hacks . | . . . Terminals . | . . . Fabricators . | . . . Repair Stations . | . . . Recycling Units . | . . . Scanalyzers . | . . . Garrison Access . | . . . Data Cores Recovered . | . . . Used . | . . . Hacking Detections 1 | . 1 . Full Trace Events . | . . . Feedback Events . | . . . Feedback Blocked . | . . . Robot Schematics Acquired . | . . . Robots Built . | . . . Authchips . | . . . Time . | . . . Total Robot Build Rating . | . . . Part Schematics Acquired . | . . . Parts Built . | . . . Authchips . | . . . Time . | . . . Total Part Build Rating . | . . . Parts Repaired 1 | . 1 . Time 26 | . 26 . Parts Recycled . | . . . Recycled Matter 2 | . 2 . Retrieved Matter . | . . . Retrieved Components . | . . . Parts Scanalyzed . | . . . Part Schematics Acquired . | . . . Parts Damaged . | . . . Bothacking | -11 -10 -9 ------------ Run | Yrd Mat Mat Used RIF Installer . | . . . Robots Hacked . | . . . Non-combat . | . . . Combat . | . . . Robot Hacks Applied . | . . . Relay Couplers Released . | . . . Fabnet Peak Effective % . | . . . Robots Rewired . | . . . Allies Hacked . | . . . Hacks Repelled . | . . . Allies | -11 -10 -9 -------- Run | Yrd Mat Mat Total Allies . | . . . Largest Group . | . . . Highest-Rated Group . | . . . Highest-Rated Ally . | . . . Total Orders . | . . . Ally Attacks . | . . . Total Damage . | . . . Kills . | . . . Allies Corrupted . | . . . Allies Melted . | . . . Intel | -11 -10 -9 ------- Run | Yrd Mat Mat Robot Analysis Total . | . . . Derelict Logs Recovered . | . . . Drone Launches . | . . . Drone Recoveries . | . . . Exploration | -11 -10 -9 ------------- Run | Yrd Mat Mat Turns Passed 1212 | 46 692 474 Spaces Moved 694 | 33 412 249 Core 85 | 8 . 77 Treads . | . . . Legs 609 | 25 412 172 Wheels . | . . . Hover . | . . . Flight . | . . . Fastest Speed 50 | 50 120 50 Average Speed 128 | 110 121 143 Slowest Speed 400 | 120 190 400 Overloaded Moves . | . . . Propulsion Burnouts . | . . . Robots Hopped . | . . . Cave-ins Triggered . | . . . Exploration Rate (%) 36 | 3 67 39 Regions Visited 2 Branch Regions . Pre-discovered Areas . | . . . Known Exits Taken . | . . . Unknown Exits Taken 2 | 1 1 . Scrap Searched . | . . . Spaces Dug . | . . . Terrain Destroyed 32 | . 18 14 Melee . | . . . Projectile . | . . . AOE 32 | . 18 14 Terrain Rammed . | . . . Walls Destroyed . | . . . Machines Disabled . | . . . Actions | -11 -10 -9 --------- Run | Yrd Mat Mat Total 885 | 42 529 314 Wait 13 | . 12 1 Move 692 | 32 411 249 Hop . | . . . Pick Up 26 | 5 12 9 Fast Attach . | . . . Attach 18 | 5 7 6 Detach . | . . . Swap 8 | . 4 4 Drop 8 | . 5 3 Fire 110 | . 72 38 Melee . | . . . Ram 1 | . . 1 Kick 9 | . 6 3 Crush . | . . . Escape Stasis . | . . . Rewire . | . . . Trap . | . . . Miscellaneous . | . . . Route ------- -11/Scrapyard -10/Materials (discovered 2 exits: [*Mat x2]) -9/Materials (discovered 1 exit: [*Min]) History --------- Turn | Location | Event 2 | -11/Scrapyard | Met Revision 17 29 | -11/Scrapyard | Discovered new exit (range 14) 47 | -11/Scrapyard | Entered Materials 248 | -10/Materials | Discovered new exit (range 9) 286 | -10/Materials | Repaired Aluminum Leg 308 | -10/Materials | Build established: Mutant 412 | -10/Materials | Core integrity fell below 50% 429 | -10/Materials | Lost 4 parts (1p1n2w) 544 | -10/Materials | Discovered new exit (range 6) 681 | -10/Materials | Core integrity fell below 20% 739 | -10/Materials | Entered another Materials area 739 | -9/Materials | Evolved 2 slots: Power x1, Propulsion x1 842 | -9/Materials | Discovered new exit (range 7) 1078 | -9/Materials | Lost 9 parts (2p3n2u2w) 1124 | -9/Materials | Core integrity fell below 50% 1208 | -9/Materials | Core integrity fell below 20% 1213 | -9/Materials | Self-destructed Last Messages --------------- Aluminum Leg destroyed. K-01 Serf collects debris. S-10 Pest destroyed. Hvy. Assault Rifle destroyed. Y-45 Defender destroyed. Acquired 55 matter. Acquired Beam Rifle. K-01 Serf collects debris. K-01 Serf cleans the Nuclear Reactor. Acquired Prototype Engine. Identified Hvy. Ion Engine. Acquired Hvy. Ion Engine. Slammed into G-34 Mercenary. Imp. Assault Rifle destroyed. O-16 Technician: "IFF HANDSHAKE FAILED. SECURING TERMINAL." ALERT: Hostiles spotted, dispatching reinforcements to Terminal M003. Beam Rifle destroyed. Hvy. Ion Engine destroyed. Map ----- +----------------------------------------------------+ | ????????????????????????????????????????? | | ????????????????????????????????????????? | | ????????????????????????????????????????? | | ????????????????????????????????????????? | | ????????????????????????????????????????? | | ????????????????????????????????????????? | | ????????????????????????????????????????? | | ????????????????????????????????????????? | | ????????????????????????????????????????? | | #???????????????????????????????????????? | | #???????????????????????????????????????? | | ##??????????????????????????????????????? | | "#??????????????????????????????????????? | | #??????????????????????????????????????? | | "#########??????????????????????????????? | | "#| #??????????????????????????????? | | ## """ #??????????????????????????????? | | # """ #??????????????????????????????? | | # """ #??????????????????????????????? | | / [ #??????????????????????????????? | | #########??????????????????####+##?????? | | #????????????????????????? #?????? | | #??????????#######???????? #?????? | | #??????????# ######## k #?????? | | #??????????# # #?????? | | ######??????# g @ [[[ #?????? | | #??????# g # [[[ #?????? | | "" #??????# ######## [[[ #?????? | | """ ######### ########?? #?????? | | """ ## ! # # #?? [ Y #?????? | | """ ## # # """ #???### ###?????? | | "" ## + + """ #???????#???????? | | ## " "" # # """ #???????????????? | | ## "R"" # # #???????????????? | | ## """"?# #! #???????????????? | | ######??####?# ########???????????????? | | ############# #??????????????????????? | | + """ # #??????????????????????? | | ###### "T" # ##########?????????????? | | #????# # # #?????????????? | | #????# # # #?????????????? | | ###### # # #?????????????? | | + """ # # ! #?????????????? | | ###### """ + ^ + ! #?????????????? | | ###### """ # ^ # * #?????????????? | | # # # !#?????????????? | | # """ # # #?????????????? | | # """ # # #?????????????? | | # """ # ##########?????????????? | | # # # #??????????????????????? | +----------------------------------------------------+ Best States ------------- Heat Dissipation 38 Energy Generation 23 Energy Capacity 460 Matter Stores 300 Matter Capacity 300 Sight Range 16 Robot Scan Range 14 Terrain Scan Density 10 Evasion (%) 55 Item Schematics ----------------- None Robot Schematics ------------------ None Fabricated ------------ Nothing Alien Tech Used ----------------- None Achievements -------------- None Challenges ------------ None Game ------ Seed ModifiedDataMeganuke Manual? 0 Play Time 00:23:55 Cumulative 15.7 hours Start 2024.11.07 @ 23:04:49 End 2024.11.07 @ 23:27:33 Sessions 1 Manual Loads 0 Difficulty Rogue Special Mode None Game No. 52 Rogue 52 Adventurer 0 Explorer 0 Win Type - Total 0 Types 0/0/0/0/0/0/0/0/0 Lore% 2 Gallery% 19 Achievement% 15 Wizard Run 0 Options --------- Layout 1 ASCII 0 Keyboard 0 Movement Numpad Keybinds 0 Fullscreen 1 Font 24/Smallcaps Map View 50x35 Zoom Use 0% Tactical HUD 0 Map Filters NONE Filters NONE Steam 1 RUN: c6652256-867a-4bc1-8df0-0b154306a062